bitfinex-derivatives/quotes_SOLF0:USTF0_20241212
["timestamp","ask_amount","ask_price","bid_price","bid_amount"]
[1733963986583,2.2001,227.07,227.02,8.75754121]
[1733963987489,2.2001,227.07,227.03,2.2004]
[1733963991385,2.2002,227.06,227.02,6.55714121]
[1733963992591,2.2002,227.06,227.02,8.75764121]
[1733963995684,6.55714121,227.07,227.0,6.55714121]
[1733963995888,6.55714121,227.05,226.99,2.7434]
[1733963996592,2.2006,227.02,226.99,2.7434]
[1733964006502,2.2006,227.02,226.99,1.3873]
[1733964007194,2.02,227.04,226.94,1.4764]
[1733964007400,6.55714121,227.01,226.94,8.03354121]
[1733964008703,2.201,226.98,226.94,10.23474121]
[1733964008898,2.201,226.98,226.94,8.03354121]
[1733964009802,2.02,227.04,226.96,6.55714121]
[1733964010003,2.02,227.04,226.99,6.55714121]
[1733964010202,2.2004,227.03,226.99,8.75794121]
[1733964010605,2.02,227.04,227.01,6.55714121]
[1733964011099,2.02,227.04,227.01,8.75774121]
[1733964011402,5.30318202,227.13,227.01,6.55714121]
[1733964011594,6.55714121,227.09,227.03,8.75754121]
[1733964011796,2.20147939,227.12,227.05,6.55714121]
[1733964011994,2.02,227.11,227.05,6.55714121]
[1733964012398,4.2197,227.11,227.06,2.2]
[1733964013505,4.2197,227.11,227.05,6.55714121]
[1733964013506,2.02,227.11,227.07,2.2]
[1733964013698,2.02,227.11,227.07,6.55714121]
[1733964014004,2.20147939,227.12,227.07,6.55714121]
[1733964014599,2.20147939,227.12,227.08,2.1999]
[1733964015502,2.02,227.21,227.11,6.55714121]
[1733964015697,6.55714121,227.16,227.08,2.02]
[1733964015898,6.55714121,227.12,227.06,6.55714121]
[1733964016703,2.1997,227.11,227.06,6.55714121]
[1733964018000,8.57714121,227.1,227.02,4.2066]
[1733964018212,6.55714121,227.08,227.02,4.2066]
[1733964018506,6.55714121,227.06,226.97,1.4468]
[1733964018810,6.55714121,227.06,227.0,6.55714121]
[1733964019704,2.2002,227.06,227.0,8.75774121]
[1733964019911,6.55714121,227.06,227.0,6.55714121]
[1733964020412,2.2001,227.07,227.02,2.2005]
[1733964021303,2.2002,227.06,227.0,8.75774121]
[1733964021507,8.57714121,227.08,227.0,8.75774121]
[1733964022604,2.2001,227.06,227.01,2.2006]
[1733964026108,6.55714121,227.06,226.99,2.2007]
[1733964026313,6.55714121,227.06,226.99,8.75784121]
[1733964027207,2.2004,227.04,226.99,8.75784121]
[1733964030909,2.2004,227.04,227.01,6.55714121]
[1733964031211,2.2002,227.05,227.01,6.55714121]
[1733964031407,6.55714121,227.06,227.01,8.75764121]
[1733964031614,2.02,227.08,227.01,6.55714121]
[1733964031815,8.57714121,227.08,227.01,6.55714121]
[1733964032617,10.77714121,227.08,227.03,2.2003]
[1733964032915,10.77714121,227.08,227.03,8.75744121]
[1733964034614,8.57714121,227.08,227.03,8.75744121]
[1733964034820,2.2001,227.07,227.03,2.2003]
[1733964038609,10.77714121,227.08,227.03,8.75754121]
[1733964039315,2.2001,227.07,227.03,8.75754121]
[1733964052330,2.2001,227.07,227.04,2.2003]
[1733964053228,2.2002,227.06,227.02,2.2004]
[1733964053532,8.57714121,227.08,227.01,6.55714121]
[1733964053833,2.2003,227.04,226.99,6.55714121]
[1733964054023,6.55714121,227.06,226.99,6.55714121]
[1733964054223,6.55714121,227.06,226.98,2.2008]
[1733964054428,2.2006,227.02,226.98,6.55714121]
[1733964054629,2.2006,227.02,226.97,1.4468]
[1733964054630,2.02,227.05,227.0,6.55714121]
[1733964054828,2.02,227.06,227.0,6.55714121]
[1733964055029,2.2003,227.05,227.02,6.55714121]
[1733964055224,2.02,227.06,227.02,6.55714121]
[1733964055425,2.02,227.08,227.02,6.55714121]
[1733964056630,4.22,227.08,227.04,2.2003]
[1733964058234,2.2001,227.07,227.03,2.2004]
[1733964060736,4.22,227.08,227.04,2.2003]
[1733964060937,2.718,227.21,227.06,6.55714121]
[1733964061139,6.55714121,227.14,227.06,6.55714121]
[1733964061335,2.1997,227.12,227.07,2.2]
[1733964062037,2.1997,227.11,227.07,2.2]
[1733964064339,2.1998,227.1,227.06,8.75724121]
[1733964071238,2.02,227.12,227.07,2.1999]
[1733964071838,2.1997,227.11,227.08,2.1999]
[1733964072040,2.02,227.12,227.08,8.75704121]
[1733964072237,2.02,227.13,227.1,6.55714121]
[1733964072439,6.55714121,227.17,227.1,6.55714121]
[1733964072639,2.02,227.16,227.1,6.55714121]
[1733964072839,6.55714121,227.17,227.1,6.55714121]
[1733964073039,2.02,227.16,227.1,6.55714121]
[1733964073339,2.1994,227.14,227.11,2.1997]
[1733964076343,2.1994,227.14,227.1,8.75684121]
[1733964078443,2.1992,227.16,227.11,2.1996]
[1733964078640,2.02,227.16,227.11,2.1996]
[1733964079641,2.1994,227.15,227.11,2.1996]
[1733964079837,2.02,227.16,227.1,6.55714121]
[1733964080045,2.02,227.16,227.1,8.75684121]
[1733964080650,2.1994,227.14,227.1,8.75684121]
[1733964081446,6.55714121,227.13,227.07,6.55714121]
[1733964081747,6.55714121,227.12,227.07,6.55714121]
[1733964081939,2.1998,227.1,227.07,6.55714121]
[1733964083444,2.1998,227.1,227.07,8.75714121]
[1733964084148,2.1998,227.1,227.07,6.55714121]
[1733964091152,2.1999,227.09,227.05,6.55714121]
[1733964092559,2.1999,227.09,227.05,8.75724121]
[1733964093662,2.1999,227.09,227.06,2.2001]
[1733964093866,2.02,227.11,227.06,2.2001]
[1733964094059,2.1998,227.1,227.06,2.2001]
[1733964096065,2.1998,227.1,227.07,6.55714121]
[1733964096565,2.1998,227.1,227.07,8.75714121]
[1733964096959,2.02,227.11,227.07,8.75714121]
[1733964097658,2.02,227.11,227.04,4.094]
[1733964097866,2.02,227.11,227.06,6.55714121]
[1733964098566,2.1999,227.09,227.06,8.75724121]
[1733964100469,2.1998,227.1,227.06,8.75724121]
[1733964101365,2.2,227.08,227.04,6.2943]
[1733964101567,6.55714121,227.1,226.99,2.02]
[1733964101762,6.55714121,227.1,227.02,6.55714121]
[1733964102566,6.55714121,227.1,227.03,2.2004]
[1733964102567,2.2001,227.07,227.03,2.2004]
[1733964103369,6.55714121,227.08,227.01,2.2005]
[1733964103664,6.55714121,227.08,227.0,6.55714121]
[1733964104067,2.2004,227.04,226.99,2.2008]
[1733964104265,2.2004,227.04,227.0,6.55714121]
[1733964104468,2.2004,227.04,226.99,2.2008]
[1733964104769,2.2004,227.04,227.0,8.75784121]
[1733964105472,2.02,227.05,227.0,8.75784121]
[1733964105473,2.2004,227.03,227.0,8.75784121]
[1733964107573,2.2003,227.04,227.0,8.75784121]
[1733964109068,2.2004,227.03,227.0,6.55714121]
[1733964109772,2.2003,227.04,227.0,6.55714121]
[1733964111077,2.2003,227.04,226.98,1.3844]
[1733964111276,2.2003,227.04,227.0,6.55714121]
[1733964112569,2.2003,227.04,227.0,8.75784121]
[1733964117374,2.2003,227.04,227.01,2.2006]
[1733964118078,2.02,227.05,227.0,6.55714121]
[1733964118281,2.02,227.05,227.02,6.55714121]
[1733964119683,2.02,227.05,227.02,8.75764121]
[1733964123893,2.2002,227.06,227.02,8.75764121]
[1733964124194,2.2001,227.07,227.04,6.55714121]
[1733964125692,2.2001,227.07,227.04,8.75744121]
[1733964125991,2.02,227.13,227.06,6.55714121]
[1733964126295,6.55714121,227.14,227.08,6.55714121]
[1733964126491,2.02,227.13,227.08,6.55714121]
[1733964127294,2.02,227.13,227.1,6.55714121]
[1733964127798,2.02,227.15,227.1,6.55714121]
[1733964128595,2.1993,227.15,227.1,8.75684121]
[1733964129495,2.02,227.16,227.1,8.75684121]
[1733964129696,2.1994,227.14,227.1,6.55714121]
[1733964129901,2.1994,227.14,227.09,8.75694121]
[1733964131600,2.1994,227.14,227.11,6.55714121]
[1733964133198,8.57714121,227.16,227.11,6.55714121]
[1733964133997,2.1994,227.14,227.11,6.55714121]
[1733964134508,2.1997,227.11,227.06,6.5069]
[1733964134807,2.1997,227.11,227.07,6.55714121]
[1733964136297,2.1997,227.11,227.07,8.75714121]
[1733964137906,2.1999,227.09,227.07,6.55714121]
[1733964139013,2.1998,227.1,227.07,6.55714121]
[1733964139705,2.1997,227.12,227.07,8.75714121]
[1733964141310,2.1997,227.12,227.09,6.55714121]
[1733964146516,2.1995,227.13,227.09,8.75694121]
[1733964148417,8.57714121,227.16,227.11,6.55714121]
[1733964149216,2.1994,227.14,227.11,6.55714121]
[1733964152621,6.55714121,227.15,227.07,2.1999]
[1733964152917,6.55714121,227.13,227.07,8.75704121]
[1733964155723,2.1997,227.11,227.07,8.75704121]
[1733964155919,4.2197,227.11,227.07,8.75704121]
[1733964156821,2.1998,227.1,227.07,6.55714121]
[1733964157217,2.1999,227.09,227.06,1.3969]
[1733964157616,2.02,227.11,227.06,1.3969]
[1733964157817,2.1998,227.1,227.06,1.3969]
[1733964158022,2.02,227.11,227.06,1.3969]
[1733964159716,2.1999,227.09,227.06,1.3969]
[1733964166120,2.1998,227.1,227.06,3.597]
[1733964171628,2.1998,227.1,227.07,2.2]
[1733964171822,2.1998,227.1,227.06,1.3969]
[1733964172329,2.1998,227.1,227.06,2.2001]
[1733964175333,8.75694121,227.1,227.06,2.2001]
[1733964175831,6.55714121,227.08,227.01,1.4205]
[1733964176026,6.55714121,227.08,227.01,7.97764121]
[1733964176730,2.2002,227.06,227.02,2.2005]
[1733964176928,4.2202,227.06,227.02,2.2005]
[1733964177334,4.2202,227.06,227.03,2.2004]
[1733964180028,6.55714121,227.08,227.03,2.2004]
[1733964180029,2.02,227.07,227.03,6.55714121]
[1733964180626,6.55714121,227.09,227.03,6.55714121]
[1733964180833,2.02,227.09,227.06,2.2001]
[1733964183033,8.57714121,227.09,227.06,2.2001]
[1733964183232,10.77704121,227.09,227.06,2.2001]
[1733964184129,6.55714121,227.07,227.01,1.4205]
[1733964184328,6.55714121,227.07,227.01,7.97764121]
[1733964184735,2.02,227.06,227.01,7.97764121]
[1733964185433,2.02,227.06,227.01,6.55714121]
[1733964186033,2.2003,227.04,226.98,2.2009]
[1733964186230,2.02,227.06,226.98,6.55714121]
[1733964186536,2.02,227.06,227.02,6.55714121]
[1733964186740,2.02,227.06,227.03,2.2004]
[1733964190147,2.02,227.06,226.95,2.8358]
[1733964190441,2.2003,227.05,227.01,6.55714121]
[1733964191043,2.2003,227.04,227.01,6.55714121]
[1733964192247,4.2202,227.06,227.01,6.55714121]
[1733964192442,2.02,227.06,227.01,6.55714121]
[1733964192952,2.1999,227.09,227.01,6.55714121]
[1733964193147,2.02,227.08,227.01,8.75774121]
[1733964193448,6.55714121,227.07,227.01,8.75774121]
[1733964193644,2.2002,227.06,227.01,8.75774121]
[1733964193946,8.57714121,227.08,227.01,8.75774121]
[1733964195346,8.57714121,227.08,227.01,2.2006]
[1733964195651,2.2002,227.05,227.01,8.75774121]
[1733964196847,2.02,227.08,226.95,2.8358]
[1733964197046,6.55714121,227.02,226.95,2.8358]
[1733964197251,6.55714121,227.02,226.96,6.55714121]
[1733964197448,2.02,227.03,226.98,6.55714121]
[1733964198754,2.02,227.03,226.99,2.2008]
[1733964199249,2.02,227.06,227.02,8.75754121]
[1733964199454,8.57714121,227.08,227.02,8.75754121]
[1733964200251,8.57714121,227.08,227.02,2.2004]
[1733964200655,6.55714121,227.04,226.95,2.8358]
[1733964200850,6.55714121,227.04,226.97,6.55714121]
[1733964201055,2.02,227.03,226.97,6.55714121]
[1733964202153,2.2006,227.02,226.96,2.201]
[1733964202356,6.55714121,227.0,226.95,7.92934121]
[1733964202553,6.55714121,227.02,226.95,7.92934121]
[1733964203551,2.2009,226.99,226.95,7.92934121]
[1733964204558,2.2009,226.99,226.95,10.13054121]
[1733964204760,2.02,227.03,226.97,6.55714121]
[1733964204951,8.57714121,227.03,226.97,6.55714121]
[1733964205553,2.2006,227.02,226.98,2.2009]
[1733964209664,4.3287,227.11,227.0,6.55714121]
[1733964209862,6.55714121,227.08,227.02,6.55714121]
[1733964210769,8.75714121,227.08,227.03,2.2003]
[1733964211566,2.2,227.08,227.03,2.2003]
[1733964213872,8.57714121,227.09,227.02,6.55714121]
[1733964213873,2.2002,227.06,227.02,6.55714121]
[1733964214169,8.57714121,227.09,227.02,6.55714121]
[1733964214571,6.55714121,227.07,227.02,6.55714121]
[1733964215771,2.2003,227.05,227.02,6.55714121]
[1733964215970,2.02,227.09,227.02,8.75764121]
[1733964216275,6.55714121,227.07,227.02,8.75764121]
[1733964217673,2.2001,227.06,227.02,8.75764121]
[1733964218168,2.2001,227.06,227.02,2.2005]
[1733964219869,8.75724121,227.07,227.03,2.2004]
[1733964220176,2.2001,227.07,227.03,8.75754121]
[1733964220377,8.57714121,227.09,227.03,6.55714121]
[1733964221575,2.2002,227.06,227.03,6.55714121]
[1733964222275,2.2002,227.06,227.02,2.2005]
[1733964222481,2.2002,227.06,227.02,8.75764121]
[1733964224174,6.55714121,227.07,227.02,6.55714121]
[1733964224778,2.2004,227.04,227.02,6.55714121]
[1733964225185,2.02,227.08,226.96,1.4594]
[1733964225482,2.02,227.08,227.01,6.55714121]
[1733964225671,8.57714121,227.08,227.01,6.55714121]
[1733964226575,2.2001,227.06,227.01,8.75774121]
[1733964226773,2.02,227.07,227.03,6.55714121]
[1733964227280,4.2201,227.07,227.03,8.75754121]
[1733964227780,2.2001,227.07,227.03,8.75754121]
[1733964230178,2.02,227.09,227.03,6.55714121]
[1733964230384,2.2001,227.06,227.03,6.55714121]
[1733964232988,2.2001,227.06,227.02,2.2005]
[1733964233190,2.2001,227.06,227.02,8.75764121]
[1733964235180,2.1992,227.16,227.06,2.2001]
[1733964235385,6.55714121,227.12,227.06,8.75724121]
[1733964235586,2.02,227.11,227.06,8.75724121]
[1733964236087,2.1998,227.1,227.06,6.55714121]
[1733964236686,2.2,227.08,227.02,2.2004]
[1733964236983,2.2,227.08,227.03,6.55714121]
[1733964237383,2.2,227.08,227.03,8.75754121]
[1733964237983,6.55714121,227.1,227.02,2.2005]
[1733964238586,6.55714121,227.1,227.02,8.75764121]
[1733964238783,6.55714121,227.1,227.04,6.55714121]
[1733964239491,2.2002,227.06,227.04,6.55714121]
[1733964240987,6.55714121,227.1,227.04,6.55714121]
[1733964241288,2.2001,227.07,227.04,6.55714121]
[1733964241490,6.55714121,227.1,227.04,6.55714121]
[1733964241691,6.55714121,227.12,227.04,6.55714121]
[1733964241890,2.02,227.1,227.04,6.55714121]
[1733964242588,2.1999,227.09,227.05,2.2002]
[1733964244386,2.1999,227.08,227.04,6.55714121]
[1733964244595,2.1999,227.08,227.04,8.75744121]
[1733964245596,2.1999,227.08,227.05,2.2002]
[1733964247590,2.2002,227.06,227.02,8.75764121]
[1733964248189,2.2,227.08,227.04,2.2003]
[1733964248495,6.55714121,227.1,227.04,6.55714121]
[1733964248695,2.1999,227.09,227.05,2.2002]
[1733964253194,2.1998,227.1,227.06,2.2001]
[1733964256893,2.1999,227.09,227.05,6.55714121]
[1733964257095,2.1999,227.09,227.05,8.75734121]
[1733964257289,2.1999,227.09,227.05,2.2002]
[1733964258704,8.75704121,227.09,227.05,2.2002]
[1733964259094,6.55714121,227.07,226.98,6.12580554]
[1733964259299,6.55714121,227.05,226.98,6.55714121]
[1733964259699,6.55714121,227.05,227.0,6.55714121]
[1733964259900,8.75734121,227.05,227.0,8.75774121]
[1733964261203,2.2003,227.04,227.0,8.75774121]
[1733964264609,2.02,227.06,227.01,2.2006]
[1733964264809,2.2003,227.05,227.01,2.2006]
[1733964266101,6.55714121,227.05,226.93,24.50322216]
[1733964266302,2.02,227.04,226.91,16.75536637]
[1733964266507,6.55714121,226.97,226.9,6.55714121]
[1733964266707,2.02,226.98,226.92,6.55714121]
[1733964267505,2.2012,226.95,226.92,6.55714121]
[1733964267704,2.2012,226.95,226.9,2.2016]
[1733964267905,2.2012,226.95,226.91,6.55714121]
[1733964268109,2.2014,226.93,226.88,4.9441]
[1733964268312,2.02,226.98,226.88,2.7423]
[1733964268608,2.2014,226.93,226.85,2.2021]
[1733964268815,2.02,226.98,226.89,6.55714121]
[1733964268816,6.55714121,226.95,226.89,6.55714121]
[1733964269402,2.2014,226.93,226.89,6.55714121]
[1733964272211,2.2015,226.92,226.89,6.55714121]
[1733964272912,2.02,226.95,226.89,6.55714121]
[1733964273613,2.2014,226.93,226.89,6.55714121]
[1733964273912,2.02,226.97,226.91,6.55714121]
[1733964274110,2.02,226.98,226.91,6.55714121]
[1733964275013,6.55714121,226.97,226.91,6.55714121]
[1733964275509,6.55714121,226.97,226.9,2.2017]
[1733964275709,2.2012,226.95,226.9,8.75884121]
[1733964276110,2.2012,226.95,226.9,2.2017]
[1733964276615,2.2012,226.95,226.91,6.55714121]
[1733964278418,2.2013,226.94,226.91,6.55714121]
[1733964286022,2.2015,226.92,226.88,2.2018]
[1733964286230,2.02,226.98,226.87,6.55714121]
[1733964286528,6.55714121,226.93,226.87,6.55714121]
[1733964287725,2.2015,226.92,226.88,2.2019]
[1733964288527,2.2015,226.92,226.89,6.55714121]
[1733964288826,2.2017,226.91,226.84,2.02]
[1733964289025,2.2017,226.91,226.88,6.55714121]
[1733964289928,2.2015,226.92,226.88,8.75904121]
[1733964292724,2.2014,226.93,226.89,2.2017]
[1733964295733,2.2015,226.92,226.89,8.75884121]
[1733964297238,2.2015,226.92,226.88,2.2019]
[1733964297442,2.2015,226.92,226.88,8.75904121]
[1733964298144,6.55714121,226.94,226.88,2.2019]
[1733964298437,2.02,226.98,226.89,2.2017]
[1733964298635,6.55714121,226.95,226.89,2.2017]
[1733964298939,2.2015,226.93,226.89,2.2017]
[1733964299240,6.55714121,226.95,226.89,2.2017]
[1733964301040,2.02,226.98,226.85,6.55714121]
[1733964301242,6.55714121,226.91,226.85,6.55714121]
[1733964301443,2.2019,226.89,226.85,8.75934121]
[1733964303342,6.55714121,226.91,226.85,6.55714121]
[1733964304047,2.2021,226.86,226.81,5.2790754]
[1733964304348,2.2021,226.86,226.84,6.55714121]
[1733964305238,2.2021,226.86,226.83,2.2024]
[1733964305444,2.02,226.87,226.77,6.12580554]
[1733964305638,6.55714121,226.85,226.79,6.55714121]
[1733964306037,2.2024,226.84,226.8,2.2026]
[1733964306349,2.02,226.87,226.82,6.55714121]
[1733964306547,2.02,226.88,226.82,6.55714121]
[1733964306742,2.02,226.88,226.82,8.75954121]
[1733964306743,8.57714121,226.88,226.82,8.75954121]
[1733964307648,2.2021,226.86,226.82,2.2024]
[1733964307844,2.2021,226.86,226.82,8.75954121]
[1733964308447,4.2763,226.98,226.84,6.55714121]
[1733964308655,2.02,226.97,226.89,6.55714121]
[1733964308949,2.2014,226.93,226.89,6.55714121]
[1733964310357,2.2014,226.93,226.88,2.2019]
[1733964310555,2.2014,226.93,226.88,8.75904121]
[1733964310853,2.2014,226.93,226.9,6.55714121]
[1733964312255,4.3988,227.14,226.92,6.55714121]
[1733964312452,6.55714121,227.0,226.94,6.55714121]
[1733964312657,8.57714121,227.02,226.96,6.55714121]
[1733964312854,2.2006,227.01,226.96,8.75814121]
[1733964313764,2.2007,227.0,226.95,6.55714121]
[1733964314756,2.2007,227.0,226.95,8.75824121]
[1733964315060,2.2006,227.01,226.95,6.55714121]
[1733964315861,2.2009,226.99,226.95,6.55714121]
[1733964316259,2.02,227.02,226.97,6.55714121]
[1733964317658,6.55714121,227.01,226.92,2.7769]
[1733964317862,2.02,227.02,226.93,6.55714121]
[1733964318057,6.55714121,226.99,226.93,6.55714121]
[1733964318257,2.201,226.97,226.93,6.55714121]
[1733964319563,2.201,226.97,226.93,8.75854121]
[1733964320860,6.55714121,227.0,226.95,6.55714121]
[1733964321060,2.2007,227.01,226.97,6.55714121]
[1733964321364,2.02,227.02,226.97,6.55714121]
[1733964321560,2.2007,227.0,226.97,6.55714121]
[1733964321762,2.02,227.02,226.97,6.55714121]
[1733964321959,2.02,227.02,226.94,2.2012]
[1733964321960,6.55714121,227.01,226.95,6.55714121]
[1733964322566,2.2008,226.99,226.95,6.55714121]
[1733964322767,2.2008,226.99,226.95,8.75834121]
[1733964323564,6.55714121,227.01,226.95,2.2012]
[1733964323863,6.55714121,227.01,226.96,6.55714121]
[1733964324559,2.2007,227.0,226.96,6.55714121]
[1733964324956,5.31068072,227.04,226.98,6.55714121]
[1733964325163,6.55714121,227.06,227.0,6.55714121]
[1733964325467,2.02,227.05,227.0,6.55714121]
[1733964326265,2.02,227.05,227.01,2.2005]
[1733964326766,2.02,227.05,227.0,6.55714121]
[1733964327967,2.02,227.05,227.0,8.75784121]
[1733964327968,2.2004,227.04,227.0,8.75784121]
[1733964328164,2.02,227.05,227.0,6.55714121]
[1733964328469,2.02,227.05,227.01,2.2006]
[1733964329565,2.02,227.05,227.0,6.55714121]
[1733964330766,2.2005,227.03,226.99,8.75784121]
[1733964331366,8.57714121,227.05,226.96,2.02]
[1733964331666,8.57714121,227.05,226.97,6.55714121]
[1733964331969,2.2007,227.01,226.97,6.55714121]
[1733964332169,8.57714121,227.05,226.97,6.55714121]
[1733964332571,2.2006,227.01,226.97,8.75814121]
[1733964333767,6.55714121,227.03,226.92,2.7769]
[1733964333968,2.2007,227.0,226.97,6.55714121]
[1733964335169,2.201,226.98,226.94,2.2012]
[1733964335369,2.201,226.98,226.94,8.75834121]
[1733964335567,2.201,226.98,226.94,2.2012]
[1733964335769,2.201,226.98,226.95,6.55714121]
[1733964339370,5.21545259,227.09,226.97,6.55714121]
[1733964339576,6.55714121,227.05,226.99,6.55714121]
[1733964339873,2.2005,227.03,226.99,8.75794121]
[1733964340174,5.21545259,227.09,226.99,8.75794121]
[1733964340175,8.57714121,227.06,226.99,6.55714121]
[1733964340573,2.2005,227.03,226.99,6.55714121]
[1733964341674,2.2005,227.03,226.99,8.75794121]
[1733964343367,2.2006,227.02,226.98,6.55714121]
[1733964343570,2.02,227.05,226.98,6.55714121]
[1733964343974,2.2005,227.02,226.98,6.55714121]
[1733964344475,2.2004,227.04,226.98,6.55714121]
[1733964344872,2.2004,227.04,227.0,6.55714121]
[1733964345069,2.2005,227.03,227.0,6.55714121]
[1733964346173,2.2003,227.05,227.0,8.75784121]
[1733964347476,2.2004,227.04,227.0,8.75784121]
[1733964347873,2.2004,227.04,227.0,6.55714121]
[1733964348078,2.2005,227.02,226.98,6.55714121]
[1733964349677,2.2005,227.02,226.98,8.75804121]
[1733964350974,6.55714121,227.04,226.98,6.55714121]
[1733964351280,2.02,227.07,226.92,2.7769]
[1733964351484,6.55714121,227.0,226.93,6.55714121]
[1733964352279,2.201,226.97,226.93,8.75854121]
[1733964353181,2.2009,226.98,226.94,2.2013]
[1733964354274,6.55714121,227.0,226.93,6.55714121]
[1733964354473,2.201,226.97,226.93,8.75844121]
[1733964354677,2.201,226.97,226.93,6.55714121]
[1733964354983,2.201,226.97,226.93,8.75854121]
[1733964355181,2.2012,226.96,226.92,2.7769]
[1733964355385,6.55714121,226.98,226.92,2.7769]
[1733964355587,6.55714121,226.98,226.92,1.3619]
[1733964357082,6.55714121,226.96,226.9,3.6049]
[1733964357680,2.2014,226.93,226.9,3.6049]
[1733964357885,6.55714121,226.94,226.88,2.2018]
[1733964358281,6.55714121,226.94,226.87,6.55714121]
[1733964358686,6.55714121,226.92,226.86,3.5961]
[1733964359692,2.2017,226.9,226.86,3.5961]
[1733964360391,2.0,226.97,226.87,6.55714121]
[1733964360587,6.55714121,226.96,226.89,6.55714121]
[1733964360786,6.55714121,226.94,226.81,3.3404]
[1733964361084,6.55714121,226.94,226.86,2.202]
[1733964361286,2.0,226.97,226.86,8.75914121]
[1733964361287,6.55714121,226.92,226.86,8.75914121]
[1733964361491,8.55714121,226.92,226.86,8.75914121]
[1733964361989,6.55714121,226.88,226.8,1.4266]
[1733964362293,6.55714121,226.84,226.76,1.4581]
[1733964362493,6.55714121,226.82,226.76,1.4581]
[1733964362693,6.55714121,226.82,226.75,6.55714121]
[1733964363383,6.55714121,226.82,226.76,2.203]
[1733964364290,2.2026,226.81,226.76,2.203]
[1733964364497,6.55714121,226.8,226.72,7.98374121]
[1733964364785,2.02,226.79,226.72,7.98374121]
[1733964365191,2.203,226.77,226.72,10.18714121]
[1733964365382,6.55714121,226.78,226.72,6.55714121]
[1733964365890,2.02,226.79,226.68,2.82]
[1733964365891,2.2032,226.75,226.68,2.82]
[1733964366092,2.2032,226.75,226.7,6.55714121]
[1733964367090,2.2033,226.74,226.69,2.2037]
[1733964367292,6.55714121,226.74,226.68,1.4581]
[1733964367594,2.2038,226.68,226.62,6.55714121]
[1733964367791,6.55714121,226.67,226.62,6.55714121]
[1733964368197,6.55714121,226.67,226.61,6.55714121]
[1733964369788,6.55714121,226.67,226.58,7.4741489]
[1733964369789,2.2041,226.65,226.58,7.4741489]
[1733964369988,2.2041,226.65,226.6,6.55714121]
[1733964370687,1.4315,226.77,226.6,8.76174121]
[1733964370988,2.2035,226.72,226.68,6.55714121]
[1733964371191,2.02,226.71,226.68,6.55714121]
[1733964371487,2.02,226.74,226.7,6.55714121]
[1733964372084,2.02,226.74,226.6,2.02]
[1733964372085,8.57714121,226.74,226.6,2.02]
[1733964372287,8.57714121,226.74,226.67,6.55714121]
[1733964372486,2.2035,226.72,226.67,6.55714121]
[1733964374492,8.57714121,226.74,226.69,2.2037]
[1733964374493,2.02,226.74,226.69,2.2037]
[1733964374793,2.02,226.73,226.69,6.55714121]
[1733964375291,2.20487718,226.77,226.71,6.55714121]
[1733964375496,2.20487718,226.77,226.58,5.2694489]
[1733964375497,4.22487718,226.77,226.73,6.55714121]
[1733964375993,4.22487718,226.77,226.71,6.55714121]
[1733964376498,2.02,226.77,226.71,6.55714121]
[1733964376696,2.02,226.77,226.72,2.2034]
[1733964377591,6.55714121,226.76,226.72,2.2034]
[1733964378500,2.02,226.77,226.72,2.2034]
[1733964378697,6.55714121,226.76,226.72,2.2034]
[1733964379493,6.55714121,226.76,226.68,1.4332]
[1733964379797,6.55714121,226.73,226.71,2.2035]
[1733964380894,6.55714121,226.73,226.68,1.4332]
[1733964381203,6.55714121,226.74,226.68,1.4332]
[1733964381402,6.55714121,226.74,226.71,2.2035]
[1733964381597,1.4722,226.83,226.68,1.4332]
[1733964381797,6.55714121,226.8,226.73,6.55714121]
[1733964381998,4.1822,226.92,226.73,6.55714121]
[1733964382200,6.55714121,226.82,226.75,6.55714121]
[1733964383105,8.75984121,226.8,226.69,2.02]
[1733964383401,8.75984121,226.8,226.73,6.55714121]
[1733964384705,8.75984121,226.8,226.75,2.2031]
[1733964385100,6.55714121,226.8,226.69,2.02]
[1733964385409,6.55714121,226.8,226.73,6.55714121]
[1733964385908,6.55714121,226.8,226.75,2.2031]